[Event "9th RTU Open 2019"]
[Site "Riga"]
[Date "2019.08.08"]
[Round "6.32"]
[White "Faibisovich, Vadim Z"]
[Black "Handke, Florian"]
[Result "1/2-1/2"]
[ECO "B33"]
[WhiteElo "2302"]
[BlackElo "2544"]
[Annotator "ChessBase"]
[PlyCount "86"]
[EventDate "2019.08.05"]
[EventType "swiss"]
[EventCountry "LAT"]
[SourceTitle "playchess.com"]
[Source "ChessBase"]
[SourceQuality "1"]
[TimeControl "5400+30"]

1. e4 {[%emt 0:00:00]} c5 {[%emt 0:00:00]} 2. Nf3 {[%emt 0:00:00]} e6 {[%emt 0:00:00]} 3. Nc3 {[%emt 0:01:15]} Nc6 {[%emt 0:00:00]} 4. d4 {[%emt 0:00:31]} cxd4 {[%emt 0:00:00]} 5. Nxd4 {[%emt 0:00:14]} Nf6 {[%emt 0:00:00]} 6. Ndb5 {[%emt 0:07:26]} d6 {[%emt 0:00:00]} 7. Bf4 {[%emt 0:07:39]} e5 {[%emt 0:00:00]} 8. Bg5 {[%emt 0:00:10]} a6 {[%emt 0:00:05]} 9. Na3 {[%emt 0:00:14]} b5 {[%emt 0:00:04]} 10. Nd5 {[%emt 0:01:39]} Be7 {[%emt 0:00:05]} 11. Bxf6 {[%emt 0:00:28]} Bxf6 {[%emt 0:00:04]} 12. c3 {[%emt 0:00:56]} Bg5 {[%emt 0:01:36]} 13. Nc2 {[%emt 0:00:59]} Rb8 {[%emt 0:00:10]} 14. Be2 {[%emt 0:04:16]} O-O {[%emt 0:00:23]} 15. O-O {[%emt 0:00:14]} Kh8 {[%emt 0:00:55]} 16. Nce3 {[%emt 0:05:24]} g6 {[%emt 0:01:07]} 17. Qd3 {[%emt 0:04:04]} a5 {[%emt 0:06:43]} 18. a3 {[%emt 0:05:58]} Be6 {[%emt 0:07:13]} 19. Rad1 {[%emt 0:01:19]} Qd7 {[%emt 0:06:55]} 20. g3 {[%emt 0:02:40]} b4 {[%emt 0:20:33]} 21. axb4 {[%emt 0:00:15]} axb4 {[%emt 0:00:05]} 22. f4 {[%emt 0:05:09]} exf4 {[%emt 0:02:08]} 23. gxf4 {[%emt 0:00:15]} Bh6 {[%emt 0:00:33]} 24. cxb4 {[%emt 0:00:34]} Bg7 {[%emt 0:03:32]} 25. b5 {[%emt 0:03:06]} Nd4 {[%emt 0:02:32]} 26. b6 {[%emt 0:00:21]} f5 {[%emt 0:01:40]} 27. Rf2 {[%emt 0:06:22]} fxe4 {[%emt 0:23:29]} 28. Qxe4 {[%emt 0:00:11]} Nf5 {[%emt 0:07:41]} 29. Bf3 {[%emt 0:10:23]} Nxe3 {[%emt 0:00:32]} 30. Qxe3 {[%emt 0:00:25]} Bxd5 {[%emt 0:00:52]} 31. Rxd5 {[%emt 0:00:38]} Rfe8 {[%emt 0:02:01]} 32. Qb3 {[%emt 0:07:59]} Qh3 {[%emt 0:02:57]} 33. Qd1 {[%emt 0:00:15]} Rxb6 {[%emt 0:00:27]} 34. Bg2 {[%emt 0:08:52]} Qe3 {[%emt 0:01:23]} 35. Qd2 {[%emt 0:01:08]} Qe7 {[%emt 0:01:57]} 36. b4 {[%emt 0:01:14]} Qa7 {[%emt 0:01:48]} 37. b5 {[%emt 0:01:21]} Qa1+ {[%emt 0:04:13]} 38. Rf1 {[%emt 0:00:13]} Qa4 {[%emt 0:00:36]} 39. f5 {[%emt 0:02:28]} gxf5 {[%emt 0:03:02]} 40. Rdxf5 {[%emt 0:00:29]} Rxb5 {[%emt 0:00:52]} 41. Rxb5 {[%emt 0:00:40]} Qxb5 {[%emt 0:00:04]} 42. Qxd6 {[%emt 0:00:18]} Qg5 {[%emt 0:00:33]} 43. Qf4 {[%emt 0:01:28]} Qxf4 {[%emt 0:01:04]} 1/2-1/2

[Event "9th RTU Open 2019"]
[Site "Riga"]
[Date "2019.08.08"]
[Round "6.33"]
[White "Stany, G.A."]
[Black "Cabezas Ayala, Ivan"]
[Result "1/2-1/2"]
[ECO "C65"]
[WhiteElo "2525"]
[BlackElo "2311"]
[Annotator "ChessBase"]
[PlyCount "43"]
[EventDate "2019.08.05"]
[EventType "swiss"]
[EventCountry "LAT"]
[SourceTitle "playchess.com"]
[Source "ChessBase"]
[SourceQuality "1"]
[TimeControl "5400+30"]

1. e4 {[%emt 0:00:59]} e5 {[%emt 0:00:21]} 2. Nf3 {[%emt 0:00:04]} Nc6 {[%emt 0:00:05]} 3. Bb5 {[%emt 0:00:06]} Nf6 {[%emt 0:00:09]} 4. Qe2 {[%emt 0:00:34]} Bc5 {[%emt 0:06:24]} 5. c3 {[%emt 0:00:06]} O-O {[%emt 0:01:31]} 6. O-O {[%emt 0:00:28]} Re8 {[%emt 0:03:29]} 7. d3 {[%emt 0:00:17]} h6 {[%emt 0:01:30]} 8. Nbd2 {[%emt 0:00:38]} a6 {[%emt 0:00:47]} 9. Ba4 {[%emt 0:00:53]} b5 {[%emt 0:00:38]} 10. Bb3 {[%emt 0:00:37]} d6 {[%emt 0:00:37]} 11. a4 {[%emt 0:00:45]} Be6 {[%emt 0:02:22]} 12. Bc2 {[%emt 0:02:53]} Bb6 {[%emt 0:01:53]} 13. Nb3 {[%emt 0:10:30]} Qe7 {[%emt 0:07:32]} 14. Be3 {[%emt 0:01:11]} Bxe3 {[%emt 0:01:07]} 15. fxe3 {[%emt 0:01:22]} d5 {[%emt 0:01:32]} 16. exd5 {[%emt 0:01:28]} Nxd5 {[%emt 0:00:09]} 17. axb5 {[%emt 0:21:42]} axb5 {[%emt 0:00:08]} 18. Rxa8 {[%emt 0:00:03]} Rxa8 {[%emt 0:00:08]} 19. d4 {[%emt 0:00:03]} exd4 {[%emt 0:07:21]} 20. exd4 {[%emt 0:02:23]} Bd7 {[%emt 0:11:05]} 21. Be4 {[%emt 0:14:47]} Re8 {[%emt 0:03:00]} 22. Ne5 {[%emt 0:02:19]} 1/2-1/2

[Event "9th RTU Open 2019"]
[Site "Riga"]
[Date "2019.08.09"]
[Round "7.2"]
[White "Sulskis, Sarunas"]
[Black "Gopal G.N."]
[Result "1/2-1/2"]
[ECO "B51"]
[WhiteElo "2528"]
[BlackElo "2594"]
[Annotator "ChessBase"]
[PlyCount "42"]
[EventDate "2019.08.05"]
[EventType "swiss"]
[EventCountry "LAT"]
[SourceTitle "playchess.com"]
[Source "ChessBase"]
[SourceQuality "1"]
[TimeControl "5400+30"]

1. e4 {[%emt 0:00:00]} c5 {[%emt 0:00:00]} 2. Nf3 {[%emt 0:00:00]} d6 {[%emt 0:00:00]} 3. Bb5+ {[%emt 0:00:07]} Nd7 {[%emt 0:00:00]} 4. O-O {[%emt 0:00:10]} a6 {[%emt 0:01:07]} 5. Bd3 {[%emt 0:00:26]} Ngf6 {[%emt 0:01:11]} 6. c3 {[%emt 0:06:02]} b5 {[%emt 0:10:30]} 7. a4 {[%emt 0:11:25]} Bb7 {[%emt 0:07:51]} 8. axb5 {[%emt 0:15:46]} axb5 {[%emt 0:00:46]} 9. Rxa8 {[%emt 0:00:09]} Qxa8 {[%emt 0:01:51]} 10. Bxb5 {[%emt 0:06:05]} Bxe4 {[%emt 0:01:25]} 11. Na3 {[%emt 0:00:50]} g6 {[%emt 0:14:53]} 12. d4 {[%emt 0:02:38]} cxd4 {[%emt 0:20:19]} 13. Qxd4 {[%emt 0:18:55]} Bxf3 {[%emt 0:08:22]} 14. gxf3 {[%emt 0:00:20]} Qxf3 {[%emt 0:01:57]} 15. Re1 {[%emt 0:02:24]} e5 {[%emt 0:13:19]} 16. Nc4 {[%emt 0:07:50]} Kd8 {[%emt 0:07:00]} 17. Qa7 {[%emt 0:07:31]} Qg4+ {[%emt 0:00:05]} 18. Kf1 {[%emt 0:01:47]} Qh3+ {[%emt 0:00:15]} 19. Kg1 {[%emt 0:00:23]} Qg4+ {[%emt 0:00:05]} 20. Kf1 {[%emt 0:00:06]} Qh3+ {[%emt 0:00:03]} 21. Kg1 {[%emt 0:00:21]} Qg4+ {[%emt 0:00:11]} 1/2-1/2

[Event "9th RTU Open 2019"]
[Site "Riga"]
[Date "2019.08.09"]
[Round "7.4"]
[White "Meshkovs, Nikita"]
[Black "Pultinevicius, Paulius"]
[Result "1/2-1/2"]
[ECO "D90"]
[WhiteElo "2550"]
[BlackElo "2481"]
[Annotator "ChessBase"]
[PlyCount "165"]
[EventDate "2019.08.05"]
[EventType "swiss"]
[EventCountry "LAT"]
[SourceTitle "playchess.com"]
[Source "ChessBase"]
[SourceQuality "1"]
[TimeControl "5400+30"]

1. Nf3 {[%emt 0:00:00]} Nf6 {[%emt 0:01:21]} 2. c4 {[%emt 0:00:00]} g6 {[%emt 0:00:03]} 3. Nc3 {[%emt 0:00:04]} d5 {[%emt 0:00:03]} 4. cxd5 {[%emt 0:00:16]} Nxd5 {[%emt 0:00:04]} 5. Qb3 {[%emt 0:00:15]} Nb6 {[%emt 0:00:04]} 6. d4 {[%emt 0:00:12]} Bg7 {[%emt 0:00:03]} 7. Bf4 {[%emt 0:00:22]} O-O {[%emt 0:03:55]} 8. e3 {[%emt 0:04:47]} Be6 {[%emt 0:04:19]} 9. Qa3 {[%emt 0:00:38]} a5 {[%emt 0:01:34]} 10. Be2 {[%emt 0:09:20]} Nc6 {[%emt 0:03:30]} 11. Rc1 {[%emt 0:02:33]} Nb4 {[%emt 0:03:02]} 12. b3 {[%emt 0:03:51]} Bg4 {[%emt 0:26:13]} 13. O-O {[%emt 0:04:04]} Bxf3 {[%emt 0:01:31]} 14. Bxf3 {[%emt 0:01:13]} Nd3 {[%emt 0:01:07]} 15. Bxb7 {[%emt 0:01:21]} Rb8 {[%emt 0:09:34]} 16. Be4 {[%emt 0:04:50]} Nxf4 {[%emt 0:00:55]} 17. exf4 {[%emt 0:00:12]} Qxd4 {[%emt 0:08:33]} 18. Qxa5 {[%emt 0:01:09]} c5 {[%emt 0:01:53]} 19. Rfd1 {[%emt 0:10:23]} Qb4 {[%emt 0:00:14]} 20. Qxb4 {[%emt 0:00:07]} cxb4 {[%emt 0:00:04]} 21. Nb5 {[%emt 0:01:31]} Nc8 {[%emt 0:02:15]} 22. Rc5 {[%emt 0:03:38]} e6 {[%emt 0:03:26]} 23. Rd7 {[%emt 0:10:21]} Bf6 {[%emt 0:02:01]} 24. Rb7 {[%emt 0:02:12]} Rd8 {[%emt 0:00:49]} 25. Kf1 {[%emt 0:05:05]} Rxb7 {[%emt 0:00:05]} 26. Bxb7 {[%emt 0:00:04]} Nd6 {[%emt 0:00:08]} 27. Nxd6 {[%emt 0:06:59]} Rxd6 {[%emt 0:00:04]} 28. Rc2 {[%emt 0:00:08]} Rd7 {[%emt 0:01:37]} 29. Bc6 {[%emt 0:01:07]} Rc7 {[%emt 0:00:38]} 30. Rc4 {[%emt 0:00:02]} Be7 {[%emt 0:00:29]} 31. Ke2 {[%emt 0:00:02]} Kf8 {[%emt 0:01:11]} 32. Kd3 {[%emt 0:01:06]} Bd6 {[%emt 0:00:43]} 33. g3 {[%emt 0:00:29]} Ke7 {[%emt 0:00:22]} 34. Kd4 {[%emt 0:00:39]} Ra7 {[%emt 0:01:21]} 35. Ba4 {[%emt 0:00:07]} Ra5 {[%emt 0:00:51]} 36. Rc2 {[%emt 0:08:30]} Rd5+ {[%emt 0:01:41]} 37. Ke3 {[%emt 0:00:13]} Rc5 {[%emt 0:01:51]} 38. Rd2 {[%emt 0:00:01]} Rc3+ {[%emt 0:01:45]} 39. Ke2 {[%emt 0:00:02]} Rc5 {[%emt 0:01:09]} 40. h4 {[%emt 0:01:24]} Rd5 {[%emt 0:05:12]} 41. Rb2 {[%emt 0:01:02]} Rc5 {[%emt 0:00:30]} 42. Kf3 {[%emt 0:00:01]} Rc3+ {[%emt 0:00:40]} 43. Kg2 {[%emt 0:00:01]} Rc5 {[%emt 0:00:35]} 44. Re2 {[%emt 0:00:02]} Kf6 {[%emt 0:00:44]} 45. Rb2 {[%emt 0:02:33]} Ke7 {[%emt 0:00:30]} 46. Kf3 {[%emt 0:00:01]} Rc3+ {[%emt 0:00:19]} 47. Ke2 {[%emt 0:00:01]} Rc5 {[%emt 0:00:16]} 48. Kd1 {[%emt 0:00:01]} Rd5+ {[%emt 0:00:22]} 49. Ke1 {[%emt 0:01:29]} Rc5 {[%emt 0:00:07]} 50. Re2 {[%emt 0:00:10]} Kf6 {[%emt 0:01:08]} 51. Kd1 {[%emt 0:00:57]} Ke7 {[%emt 0:00:32]} 52. Rb2 {[%emt 0:03:11]} Rd5+ {[%emt 0:00:09]} 53. Ke2 {[%emt 0:00:01]} Rc5 {[%emt 0:00:12]} 54. Kf3 {[%emt 0:00:43]} Rc3+ {[%emt 0:00:06]} 55. Kg2 {[%emt 0:00:07]} Rc5 {[%emt 0:00:05]} 56. Rd2 {[%emt 0:00:18]} Rd5 {[%emt 0:00:49]} 57. Rxd5 {[%emt 0:00:01]} exd5 {[%emt 0:00:07]} 58. Kf3 {[%emt 0:00:02]} f5 {[%emt 0:02:41]} 59. Bc6 {[%emt 0:01:22]} Ke6 {[%emt 0:00:10]} 60. Be8 {[%emt 0:00:27]} Ke7 {[%emt 0:00:23]} 61. Bc6 {[%emt 0:00:11]} Ke6 {[%emt 0:00:16]} 62. g4 {[%emt 0:00:13]} fxg4+ {[%emt 0:01:03]} 63. Kxg4 {[%emt 0:00:02]} Bc5 {[%emt 0:00:35]} 64. Kg3 {[%emt 0:03:07]} Bb6 {[%emt 0:00:23]} 65. Bb7 {[%emt 0:01:54]} Bc5 {[%emt 0:00:08]} 66. Bc8+ {[%emt 0:00:31]} Kf6 {[%emt 0:00:10]} 67. Bh3 {[%emt 0:00:37]} Bb6 {[%emt 0:00:21]} 68. Bg2 {[%emt 0:00:12]} Ke6 {[%emt 0:00:08]} 69. Bf3 {[%emt 0:00:07]} Bc5 {[%emt 0:01:46]} 70. Be2 {[%emt 0:00:21]} Bb6 {[%emt 0:00:11]} 71. Ba6 {[%emt 0:00:34]} Bc5 {[%emt 0:00:09]} 72. Bf1 {[%emt 0:04:59]} Bb6 {[%emt 0:00:04]} 73. Bb5 {[%emt 0:00:12]} Bc5 {[%emt 0:00:05]} 74. Bd3 {[%emt 0:00:08]} Bb6 {[%emt 0:00:24]} 75. f3 {[%emt 0:00:10]} Kf6 {[%emt 0:00:24]} 76. h5 {[%emt 0:01:12]} gxh5 {[%emt 0:00:22]} 77. Bxh7 {[%emt 0:00:59]} Be3 {[%emt 0:00:12]} 78. Bg8 {[%emt 0:01:08]} d4 {[%emt 0:00:05]} 79. Bh7 {[%emt 0:00:22]} Bc1 {[%emt 0:00:07]} 80. Bd3 {[%emt 0:00:41]} Be3 {[%emt 0:00:14]} 81. Kh4 {[%emt 0:00:20]} Bxf4 {[%emt 0:00:06]} 82. Kxh5 {[%emt 0:00:02]} Ke5 {[%emt 0:00:12]} 83. Kg4 {[%emt 0:00:46]} 1/2-1/2

[Event "9th RTU Open 2019"]
[Site "Riga"]
[Date "2019.08.09"]
[Round "7.10"]
[White "Mammadzada, Gunay"]
[Black "Wagner, Dennis"]
[Result "1/2-1/2"]
[ECO "C89"]
[WhiteElo "2427"]
[BlackElo "2579"]
[Annotator "ChessBase"]
[PlyCount "41"]
[EventDate "2019.08.05"]
[EventType "swiss"]
[EventCountry "LAT"]
[SourceTitle "playchess.com"]
[Source "ChessBase"]
[SourceQuality "1"]
[TimeControl "5400+30"]

1. e4 {[%emt 0:00:00]} e5 {[%emt 0:00:00]} 2. Nf3 {[%emt 0:00:00]} Nc6 {[%emt 0:00:00]} 3. Bb5 {[%emt 0:00:00]} a6 {[%emt 0:00:00]} 4. Ba4 {[%emt 0:00:00]} Nf6 {[%emt 0:00:00]} 5. O-O {[%emt 0:00:00]} Be7 {[%emt 0:00:02]} 6. Re1 {[%emt 0:00:11]} b5 {[%emt 0:00:06]} 7. Bb3 {[%emt 0:00:04]} O-O {[%emt 0:00:09]} 8. c3 {[%emt 0:00:11]} d5 {[%emt 0:00:37]} 9. exd5 {[%emt 0:00:47]} Nxd5 {[%emt 0:00:06]} 10. Nxe5 {[%emt 0:00:12]} Nxe5 {[%emt 0:00:07]} 11. Rxe5 {[%emt 0:00:07]} c6 {[%emt 0:00:04]} 12. d3 {[%emt 0:00:50]} Bd6 {[%emt 0:00:11]} 13. Re1 {[%emt 0:00:10]} Bf5 {[%emt 0:00:24]} 14. Qf3 {[%emt 0:01:37]} Bg6 {[%emt 0:00:43]} 15. Na3 {[%emt 0:19:21]} Bxa3 {[%emt 0:00:56]} 16. bxa3 {[%emt 0:03:21]} Nxc3 {[%emt 0:00:09]} 17. Bb2 {[%emt 0:07:38]} Na4 {[%emt 0:04:41]} 18. Bxa4 {[%emt 0:15:09]} bxa4 {[%emt 0:00:06]} 19. Qxc6 {[%emt 0:00:04]} Qxd3 {[%emt 0:00:57]} 20. Qxa4 {[%emt 0:00:10]} Rab8 {[%emt 0:25:17]} 21. Qd4 {[%emt 0:06:25]} 1/2-1/2

[Event "9th RTU Open 2019"]
[Site "Riga"]
[Date "2019.08.09"]
[Round "7.14"]
[White "Gokerkan, Cem Kaan"]
[Black "Gukesh D"]
[Result "1/2-1/2"]
[ECO "B08"]
[WhiteElo "2415"]
[BlackElo "2520"]
[Annotator "RC"]
[PlyCount "42"]
[EventDate "2019.08.05"]
[EventType "swiss"]
[EventCountry "LAT"]
[SourceTitle "playchess.com"]
[Source "ChessBase"]
[SourceQuality "1"]
[TimeControl "5400+30"]

1. e4 {[%emt 0:01:08]} g6 {[%emt 0:00:00]} 2. d4 {[%emt 0:03:47]} Bg7 {[%emt 0:00:07]} 3. Nc3 {[%emt 0:00:37]} d6 {[%emt 0:00:08]} 4. Nf3 {[%emt 0:03:54]} a6 {[%emt 0:01:08]} 5. a4 {[%emt 0:00:39]} Nf6 {[%emt 0:00:15]} 6. Be2 {[%emt 0:00:46]} O-O {[%emt 0:00:25]} 7. O-O {[%emt 0:00:20]} Nc6 {[%emt 0:07:24]} 8. h3 {[%emt 0:04:48]} d5 {[%emt 0:17:04]} 9. exd5 {[%emt 0:11:53]} Nxd5 {[%emt 0:16:05]} 10. Ne4 {[%emt 0:04:43]} e6 {[%emt 0:07:41]} 11. c3 {[%emt 0:07:25]} b6 {[%emt 0:05:32]} 12. Re1 {[%emt 0:01:49]} h6 {[%emt 0:02:38]} 13. Bd2 {[%emt 0:10:50]} Bb7 {[%emt 0:01:44]} 14. Bd3 {[%emt 0:08:11]} Nde7 {[%emt 0:03:21]} 15. Bf4 {[%emt 0:05:46]} Nf5 {[%emt 0:05:37]} 16. Qd2 {[%emt 0:02:20]} g5 {[%emt 0:02:29]} 17. Bh2 {[%emt 0:04:40]} Nce7 {[%emt 0:02:46]} 18. a5 {[%emt 0:01:59]} Ng6 {[%emt 0:05:33]} 19. axb6 {[%emt 0:00:08]} cxb6 {[%emt 0:00:02]} 20. Qe2 {[%emt 0:02:08]} a5 {[%emt 0:01:00]} 21. Rad1 {[%emt 0:01:41]} Ngh4 {[%emt 0:07:36]} 1/2-1/2

[Event "9th RTU Open 2019"]
[Site "Riga"]
[Date "2019.08.09"]
[Round "7.16"]
[White "Keinanen, Toivo"]
[Black "Vishnu Prasanna. V"]
[Result "1/2-1/2"]
[ECO "E01"]
[WhiteElo "2386"]
[BlackElo "2505"]
[Annotator "ChessBase"]
[PlyCount "52"]
[EventDate "2019.08.05"]
[EventType "swiss"]
[EventCountry "LAT"]
[SourceTitle "playchess.com"]
[Source "ChessBase"]
[SourceQuality "1"]
[TimeControl "5400+30"]

1. d4 {[%emt 0:00:00]} d5 {[%emt 0:00:00]} 2. c4 {[%emt 0:00:00]} e6 {[%emt 0:00:00]} 3. g3 {[%emt 0:00:00]} Nf6 {[%emt 0:00:38]} 4. Bg2 {[%emt 0:04:04]} Nc6 {[%emt 0:00:40]} 5. Nf3 {[%emt 0:01:37]} Bd6 {[%emt 0:00:16]} 6. O-O {[%emt 0:07:01]} O-O {[%emt 0:00:26]} 7. Bg5 {[%emt 0:09:16]} h6 {[%emt 0:01:31]} 8. Bxf6 {[%emt 0:02:20]} Qxf6 {[%emt 0:00:05]} 9. cxd5 {[%emt 0:01:13]} exd5 {[%emt 0:00:58]} 10. Nc3 {[%emt 0:00:03]} Qe6 {[%emt 0:13:02]} 11. e4 {[%emt 0:06:36]} dxe4 {[%emt 0:05:42]} 12. d5 {[%emt 0:00:38]} Qe7 {[%emt 0:07:56]} 13. dxc6 {[%emt 0:02:35]} exf3 {[%emt 0:01:32]} 14. Re1 {[%emt 0:13:04]} Qf6 {[%emt 0:04:51]} 15. Ne4 {[%emt 0:15:42]} Qd8 {[%emt 0:21:07]} 16. Nxd6 {[%emt 0:02:01]} cxd6 {[%emt 0:00:45]} 17. Bxf3 {[%emt 0:04:08]} bxc6 {[%emt 0:00:44]} 18. Bxc6 {[%emt 0:00:03]} Rb8 {[%emt 0:00:08]} 19. b3 {[%emt 0:00:53]} Be6 {[%emt 0:01:04]} 20. Bd5 {[%emt 0:01:28]} Qd7 {[%emt 0:01:09]} 21. Rc1 {[%emt 0:01:13]} Rbc8 {[%emt 0:02:06]} 22. Qd4 {[%emt 0:01:18]} Rfe8 {[%emt 0:02:59]} 23. Bg2 {[%emt 0:04:30]} Rc7 {[%emt 0:02:30]} 24. Red1 {[%emt 0:01:34]} Rec8 {[%emt 0:02:15]} 25. Rxc7 {[%emt 0:00:56]} Qxc7 {[%emt 0:00:10]} 26. h4 {[%emt 0:01:10]} d5 {[%emt 0:02:16]} 1/2-1/2

[Event "9th RTU Open 2019"]
[Site "Riga"]
[Date "2019.08.09"]
[Round "7.19"]
[White "Smirin, Ilia"]
[Black "Baskin, Robert"]
[Result "1-0"]
[ECO "B32"]
[WhiteElo "2594"]
[BlackElo "2398"]
[Annotator "ChessBase"]
[PlyCount "79"]
[EventDate "2019.08.05"]
[EventType "swiss"]
[EventCountry "LAT"]
[SourceTitle "playchess.com"]
[Source "ChessBase"]
[SourceQuality "1"]
[TimeControl "5400+30"]

1. e4 {[%emt 0:00:00]} c5 {[%emt 0:00:00]} 2. Nf3 {[%emt 0:00:00]} Nc6 {[%emt 0:00:00]} 3. d4 {[%emt 0:00:00]} cxd4 {[%emt 0:00:03]} 4. Nxd4 {[%emt 0:00:00]} e5 {[%emt 0:00:57]} 5. Nb5 {[%emt 0:00:16]} d6 {[%emt 0:00:11]} 6. N1c3 {[%emt 0:02:01]} a6 {[%emt 0:00:10]} 7. Na3 {[%emt 0:00:13]} Be7 {[%emt 0:00:26]} 8. Be3 {[%emt 0:06:04]} Nf6 {[%emt 0:00:30]} 9. Nc4 {[%emt 0:00:43]} b5 {[%emt 0:00:10]} 10. Nb6 {[%emt 0:00:22]} Rb8 {[%emt 0:00:06]} 11. Nxc8 {[%emt 0:01:09]} Qxc8 {[%emt 0:00:06]} 12. Be2 {[%emt 0:00:58]} O-O {[%emt 0:00:17]} 13. O-O {[%emt 0:01:10]} b4 {[%emt 0:03:54]} 14. Nd5 {[%emt 0:00:35]} Nxe4 {[%emt 0:00:10]} 15. c3 {[%emt 0:12:14]} Nf6 {[%emt 0:23:24]} 16. Nxe7+ {[%emt 0:09:56]} Nxe7 {[%emt 0:00:09]} 17. cxb4 {[%emt 0:00:11]} Ned5 {[%emt 0:02:54]} 18. a3 {[%emt 0:01:49]} Nxe3 {[%emt 0:01:31]} 19. fxe3 {[%emt 0:00:11]} a5 {[%emt 0:00:44]} 20. Qxd6 {[%emt 0:10:48]} Qc2 {[%emt 0:03:26]} 21. Qd3 {[%emt 0:03:46]} Rfc8 {[%emt 0:25:27]} 22. Qxc2 {[%emt 0:06:05]} Rxc2 {[%emt 0:01:18]} 23. Bd3 {[%emt 0:00:02]} Rd2 {[%emt 0:07:54]} 24. Rfd1 {[%emt 0:01:15]} Rxd1+ {[%emt 0:00:30]} 25. Rxd1 {[%emt 0:00:06]} axb4 {[%emt 0:00:03]} 26. a4 {[%emt 0:00:10]} Nd7 {[%emt 0:05:53]} 27. Rc1 {[%emt 0:04:57]} g6 {[%emt 0:02:21]} 28. Rc7 {[%emt 0:03:22]} Rd8 {[%emt 0:01:24]} 29. a5 {[%emt 0:10:05]} Nc5 {[%emt 0:01:53]} 30. Be2 {[%emt 0:01:22]} Rd2 {[%emt 0:01:37]} 31. Kf1 {[%emt 0:01:16]} Ne4 {[%emt 0:12:44]} 32. Rc4 {[%emt 0:03:21]} f5 {[%emt 0:01:32]} 33. Rxb4 {[%emt 0:00:09]} Rc2 {[%emt 0:00:12]} 34. Bd3 {[%emt 0:00:39]} Rc1+ {[%emt 0:00:28]} 35. Ke2 {[%emt 0:00:06]} Nc5 {[%emt 0:00:22]} 36. Rc4 {[%emt 0:04:54]} Nxd3 {[%emt 0:00:38]} 37. Kxd3 {[%emt 0:00:09]} Ra1 {[%emt 0:00:21]} 38. b4 {[%emt 0:00:29]} Kf7 {[%emt 0:00:28]} 39. Rc6 {[%emt 0:03:05]} e4+ {[%emt 0:02:03]} 40. Kd4 {[%emt 0:00:08]} 1-0

[Event "9th RTU Open 2019"]
[Site "Riga"]
[Date "2019.08.09"]
[Round "7.22"]
[White "Lobanov, Sergei"]
[Black "Ioannidis, Evgenios"]
[Result "1/2-1/2"]
[ECO "C90"]
[WhiteElo "2505"]
[BlackElo "2378"]
[Annotator "ChessBase"]
[PlyCount "85"]
[EventDate "2019.08.05"]
[EventType "swiss"]
[EventCountry "LAT"]
[SourceTitle "playchess.com"]
[Source "ChessBase"]
[SourceQuality "1"]
[TimeControl "5400+30"]

1. e4 {[%emt 0:00:00]} e5 {[%emt 0:00:00]} 2. Nf3 {[%emt 0:00:00]} Nc6 {[%emt 0:00:00]} 3. Bb5 {[%emt 0:00:02]} a6 {[%emt 0:00:12]} 4. Ba4 {[%emt 0:00:04]} Nf6 {[%emt 0:00:22]} 5. O-O {[%emt 0:00:06]} Be7 {[%emt 0:00:17]} 6. Re1 {[%emt 0:00:06]} b5 {[%emt 0:00:41]} 7. Bb3 {[%emt 0:00:05]} O-O {[%emt 0:00:15]} 8. d3 {[%emt 0:01:49]} d6 {[%emt 0:01:04]} 9. c3 {[%emt 0:00:16]} Na5 {[%emt 0:02:38]} 10. Bc2 {[%emt 0:00:05]} c5 {[%emt 0:00:50]} 11. d4 {[%emt 0:02:45]} cxd4 {[%emt 0:03:55]} 12. cxd4 {[%emt 0:00:05]} Nc6 {[%emt 0:00:16]} 13. h3 {[%emt 0:02:56]} Bb7 {[%emt 0:02:14]} 14. Nc3 {[%emt 0:00:50]} Rc8 {[%emt 0:03:01]} 15. Be3 {[%emt 0:02:06]} b4 {[%emt 0:11:04]} 16. Na4 {[%emt 0:01:02]} Na5 {[%emt 0:21:43]} 17. dxe5 {[%emt 0:04:03]} dxe5 {[%emt 0:00:11]} 18. Nb6 {[%emt 0:00:09]} Qxd1 {[%emt 0:06:24]} 19. Bxd1 {[%emt 0:00:36]} Rcd8 {[%emt 0:00:57]} 20. Nxe5 {[%emt 0:00:47]} Bxe4 {[%emt 0:09:03]} 21. Ba4 {[%emt 0:04:57]} Bf5 {[%emt 0:03:31]} 22. Rac1 {[%emt 0:04:41]} Be6 {[%emt 0:03:49]} 23. Bc5 {[%emt 0:12:26]} Bxc5 {[%emt 0:01:34]} 24. Rxc5 {[%emt 0:00:02]} Rd6 {[%emt 0:00:45]} 25. Nbd7 {[%emt 0:10:22]} Nxd7 {[%emt 0:00:07]} 26. Nxd7 {[%emt 0:00:03]} Bxd7 {[%emt 0:02:42]} 27. Bxd7 {[%emt 0:00:14]} Rxd7 {[%emt 0:04:31]} 28. Rxa5 {[%emt 0:00:01]} Rd6 {[%emt 0:04:29]} 29. b3 {[%emt 0:00:36]} g6 {[%emt 0:01:42]} 30. Re4 {[%emt 0:00:33]} Rb8 {[%emt 0:01:14]} 31. g4 {[%emt 0:00:20]} Kg7 {[%emt 0:00:51]} 32. Kg2 {[%emt 0:00:10]} Rbb6 {[%emt 0:00:53]} 33. g5 {[%emt 0:01:52]} h6 {[%emt 0:00:11]} 34. h4 {[%emt 0:00:04]} hxg5 {[%emt 0:00:09]} 35. hxg5 {[%emt 0:00:01]} Rd2 {[%emt 0:02:55]} 36. Kg3 {[%emt 0:05:28]} Rc6 {[%emt 0:04:36]} 37. Rf4 {[%emt 0:00:06]} Rc3+ {[%emt 0:00:25]} 38. Kg2 {[%emt 0:04:41]} Rc6 {[%emt 0:00:04]} 39. Re5 {[%emt 0:16:11]} Rc7 {[%emt 0:00:03]} 40. Ra5 {[%emt 0:00:45]} Rc6 {[%emt 0:00:03]} 41. Kg3 {[%emt 0:00:10]} Rc3+ {[%emt 0:00:10]} 42. Rf3 {[%emt 0:00:05]} Rc6 {[%emt 0:02:38]} 43. Rf4 {[%emt 0:00:25]} 1/2-1/2